fUST/lending_fUST_20250705
["ID","MTS","AMOUNT","RATE_DAILY","PERIOD"]
[369694548,1751701864234,-811.83,0.00020273,2]
[369694549,1751701864243,-436.60862123,0.00020277,2]
[369694550,1751701864252,-500.0,0.00020277,2]
[369694551,1751701864261,-1021.21019147,0.00020277,2]
[369694552,1751701864270,-617.88995193,0.00020277,2]
[369694553,1751701864279,-250.0,0.00020279,2]
[369694554,1751701864289,-1000.0,0.00020279,2]
[369694555,1751701864298,-500.0,0.00020279,2]
[369694556,1751701864307,-200.00227428,0.00020325,2]
[369694557,1751701864317,-290.34492026,0.00020348,3]
[369694558,1751701864326,-1142.23865173,0.00020366,2]
[369694559,1751701864336,-5000.0,0.00020488,2]
[369694560,1751701864345,-2648.49301409,0.000205,2]
[369694561,1751701864355,-500.0,0.00020521,2]
[369694562,1751701864364,-1000.0,0.00020521,2]
[369694563,1751701864372,-336.60441109,0.00020547,2]
[369694564,1751701864382,-151.0,0.00020547,2]
[369694565,1751701864391,-151.0,0.00020547,2]
[369694566,1751701864400,-460.0,0.00020547,2]
[369694567,1751701864410,-460.0,0.00020547,2]
[369694568,1751701864418,-460.0,0.00020547,2]
[369694569,1751701864427,-460.0,0.00020547,2]
[369694570,1751701864438,-460.0,0.00020547,2]
[369694571,1751701864447,-460.0,0.00020547,2]
[369694572,1751701864456,-460.0,0.00020547,2]
[369694573,1751701864465,-460.0,0.00020547,2]
[369694574,1751701864474,-542.89,0.00020547,2]
[369694575,1751701864483,-460.0,0.00020547,2]
[369694576,1751701864492,-460.0,0.00020547,2]
[369694577,1751701864501,-460.0,0.00020547,2]
[369694578,1751701864510,-460.0,0.00020547,2]
[369694579,1751701864519,-460.0,0.00020547,2]
[369694580,1751701864528,-460.0,0.00020547,2]
[369694581,1751701864537,-460.0,0.00020547,2]
[369694582,1751701864546,-460.0,0.00020547,2]
[369694583,1751701864555,-460.0,0.00020547,2]
[369694584,1751701864566,-460.0,0.00020547,2]
[369694585,1751701864574,-460.0,0.00020547,2]
[369694586,1751701864584,-460.0,0.00020547,2]
[369694587,1751701864593,-460.0,0.00020547,2]
[369694588,1751701864602,-460.0,0.00020547,2]
[369694589,1751701864611,-460.0,0.00020547,2]
[369694590,1751701864620,-461.99997907,0.00020547,2]
[369694591,1751701864629,-460.0,0.00020547,2]
[369694592,1751701864639,-460.0,0.00020547,2]
[369694593,1751701864648,-460.0,0.00020547,2]
[369694594,1751701864657,-460.0,0.00020547,2]
[369694595,1751701864666,-460.0,0.00020547,2]
[369694596,1751701864675,-460.0,0.00020547,2]
[369694597,1751701864684,-331.37,0.00020547,2]
[369694598,1751701864692,-704.66,0.00020547,2]
[369694599,1751701864701,-460.0,0.00020547,2]
[369694600,1751701864711,-460.0,0.00020547,2]
[369694601,1751701864720,-460.0,0.00020547,2]
[369694602,1751701864729,-460.0,0.00020547,2]
[369694603,1751701864738,-460.0,0.00020547,2]
[369694604,1751701864747,-727.24,0.00020547,2]
[369694605,1751701864756,-198.76,0.00020547,2]
[369694606,1751701864765,-460.0,0.00020547,2]
[369694607,1751701864774,-460.0,0.00020547,2]
[369694608,1751701864783,-460.0,0.00020547,2]
[369694609,1751701864792,-460.0,0.00020547,2]
[369694610,1751701864801,-578.33966035,0.00020547,2]
[369694611,1751701864811,-460.0,0.00020547,2]
[369694612,1751701864820,-460.0,0.00020547,2]
[369694613,1751701864829,-460.82,0.00020547,2]
[369694614,1751701864838,-254.46,0.00020547,2]
[369694615,1751701864846,-460.0,0.00020547,2]
[369694616,1751701864855,-426.58,0.00020547,2]
[369694617,1751701864864,-460.0,0.00020547,2]
[369694618,1751701864873,-460.0,0.00020547,2]
[369694619,1751701864882,-343.73088283,0.00020547,2]
[369694620,1751701864989,-460.0,0.00020547,2]
[369694621,1751701864999,-460.0,0.00020547,2]
[369694622,1751701865008,-399.59,0.00020547,2]
[369694623,1751701865017,-460.0,0.00020547,2]
[369694624,1751701865026,-460.0,0.00020547,2]
[369694625,1751701865036,-460.0,0.00020547,2]
[369694626,1751701865044,-204.83,0.00020547,2]
[369694627,1751701865054,-460.0,0.00020547,2]
[369694628,1751701865063,-460.0,0.00020547,2]
[369694629,1751701865072,-460.0,0.00020547,2]
[369694630,1751701865080,-460.0,0.00020547,2]
[369694631,1751701865089,-460.0,0.00020547,2]
[369694632,1751701865099,-460.0,0.00020547,2]
[369694633,1751701865108,-460.0,0.00020547,2]
[369694634,1751701865116,-460.0,0.00020547,2]
[369694635,1751701865126,-286.93,0.00020547,2]
[369694636,1751701865135,-206.87945403,0.00020547,2]
[369694637,1751701865144,-573.01,0.00020547,2]
[369694638,1751701865152,-460.0,0.00020547,2]
[369694639,1751701865161,-460.0,0.00020547,2]
[369694640,1751701865170,-537.5297294,0.00020547,2]
[369694641,1751701865178,-248.6,0.00020547,2]
[369694642,1751701865187,-502.48,0.00020547,2]
[369694643,1751701865196,-460.0,0.00020547,2]
[369694644,1751701865206,-460.0,0.00020547,2]
[369694645,1751701865215,-460.0,0.00020547,2]
[369694646,1751701865224,-460.0,0.00020547,2]
[369694647,1751701865233,-460.0,0.00020547,2]
[369694648,1751701865242,-460.0,0.00020547,2]
[369694649,1751701865251,-907.54,0.00020547,2]
[369694650,1751701865260,-1185.57,0.00020547,2]
[369694651,1751701865269,-3538.96,0.00020547,2]
[369694652,1751701865278,-687.84,0.00020547,2]
[369694653,1751701865287,-460.0,0.00020547,2]
[369694654,1751701865296,-460.0,0.00020547,2]
[369694655,1751701865305,-460.0,0.00020547,2]
[369694656,1751701865314,-460.0,0.00020547,2]
[369694657,1751701865324,-460.0,0.00020547,2]
[369694658,1751701865333,-2933.03,0.00020547,2]
[369694659,1751701865342,-460.0,0.00020547,2]
[369694660,1751701865352,-460.0,0.00020547,2]
[369694661,1751701865361,-460.0,0.00020547,2]
[369694662,1751701865371,-460.0,0.00020547,2]
[369694663,1751701865381,-518.68,0.00020547,2]
[369694664,1751701865391,-460.0,0.00020547,2]
[369694665,1751701865400,-460.0,0.00020547,2]
[369694666,1751701865409,-447.94,0.00020547,2]
[369694667,1751701865419,-460.0,0.00020547,2]
[369694668,1751701865428,-460.0,0.00020547,2]
[369694669,1751701865437,-460.0,0.00020547,2]
[369694670,1751701865446,-460.0,0.00020547,2]
[369694671,1751701865455,-460.0,0.00020547,2]
[369694672,1751701865465,-460.0,0.00020547,2]
[369694673,1751701865474,-1821.41,0.00020547,2]
[369694674,1751701865483,-632.6,0.00020547,2]
[369694675,1751701865492,-460.0,0.00020547,2]
[369694676,1751701865502,-465.98,0.00020547,2]
[369694677,1751701865512,-460.0,0.00020547,2]
[369694678,1751701865521,-1530.39,0.00020547,2]
[369694679,1751701865531,-460.0,0.00020547,2]
[369694680,1751701865541,-460.0,0.00020547,2]
[369694681,1751701865550,-460.0,0.00020547,2]
[369694682,1751701865560,-460.0,0.00020547,2]
[369694683,1751701865576,-460.0,0.00020547,2]
[369694684,1751701865586,-313.82554692,0.00020547,2]
[369694685,1751701865595,-460.0,0.00020547,2]
[369694686,1751701865604,-460.0,0.00020547,2]
[369694687,1751701865613,-460.0,0.00020547,2]
[369694688,1751701865622,-2506.18,0.00020547,2]
[369694689,1751701865631,-460.0,0.00020547,2]
[369694690,1751701865640,-410.33029412,0.00020547,2]
[369694691,1751701865649,-1202.7,0.00020547,2]
[369694692,1751701865659,-460.0,0.00020547,2]
[369694693,1751701865668,-460.0,0.00020547,2]
[369694694,1751701865677,-460.0,0.00020547,2]
[369694695,1751701865686,-460.0,0.00020547,2]
[369694696,1751701865696,-460.0,0.00020547,2]
[369694697,1751701865705,-3673.29,0.00020547,2]
[369694698,1751701865714,-460.0,0.00020547,2]
[369694699,1751701865723,-460.0,0.00020547,2]
[369694700,1751701865733,-460.0,0.00020547,2]
[369694701,1751701865743,-460.0,0.00020547,2]
[369694702,1751701865752,-460.0,0.00020547,2]
[369694703,1751701865762,-460.0,0.00020547,2]
[369694704,1751701865771,-622.8,0.00020547,2]
[369694705,1751701865780,-182.33859527,0.00020547,2]
[369694706,1751701865790,-460.0,0.00020547,2]
[369694707,1751701865800,-726.51,0.00020547,2]
[369694708,1751701865809,-460.0,0.00020547,2]
[369694709,1751701865819,-460.0,0.00020547,2]
[369694710,1751701865828,-460.0,0.00020547,2]
[369694711,1751701865837,-460.0,0.00020547,2]
[369694712,1751701865846,-460.0,0.00020547,2]
[369694713,1751701865856,-460.0,0.00020547,2]
[369694714,1751701865865,-524.99,0.00020547,2]
[369694715,1751701865876,-460.0,0.00020547,2]
[369694716,1751701865885,-460.0,0.00020547,2]
[369694717,1751701865894,-460.0,0.00020547,2]
[369694718,1751701865903,-460.0,0.00020547,2]
[369694719,1751701865912,-466.23,0.00020547,2]
[369694720,1751701865921,-460.0,0.00020547,2]
[369694721,1751701865931,-460.0,0.00020547,2]
[369694722,1751701865940,-1125.03,0.00020547,2]
[369694723,1751701865950,-4164.14,0.00020547,2]
[369694724,1751701865959,-460.0,0.00020547,2]
[369694725,1751701865969,-644.74,0.00020547,2]
[369694726,1751701865978,-2296.88,0.00020547,2]
[369694727,1751701865988,-1530.31,0.00020547,2]
[369694728,1751701865997,-235.95,0.00020547,2]
[369694729,1751701866007,-460.0,0.00020547,2]
[369694730,1751701866016,-460.0,0.00020547,2]
[369694731,1751701866026,-460.0,0.00020547,2]
[369694732,1751701866035,-1261.44,0.00020547,2]
[369694733,1751701866045,-460.0,0.00020547,2]
[369694734,1751701866055,-460.0,0.00020547,2]
[369694735,1751701866064,-650.57,0.00020547,2]
[369694736,1751701866073,-460.0,0.00020547,2]
[369694737,1751701866083,-460.0,0.00020547,2]
[369694738,1751701866093,-460.0,0.00020547,2]
[369694739,1751701866102,-460.0,0.00020547,2]
[369694740,1751701866112,-460.0,0.00020547,2]
[369694741,1751701866121,-397.75,0.00020547,2]
[369694742,1751701866131,-460.0,0.00020547,2]
[369694743,1751701866140,-712.92,0.00020547,2]
[369694744,1751701866149,-461.57,0.00020547,2]
[369694745,1751701866159,-460.0,0.00020547,2]
[369694746,1751701866168,-616.21,0.00020547,2]
[369694747,1751701866177,-530.14,0.00020547,2]
[369694748,1751701866187,-1589.72,0.00020547,2]
[369694749,1751701866195,-175.43,0.00020547,2]
[369694750,1751701866205,-460.0,0.00020547,2]
[369694751,1751701866215,-3353.68,0.00020547,2]
[369694752,1751701866224,-460.0,0.00020547,2]
[369694753,1751701866233,-151.0,0.00020547,2]
[369694754,1751701866241,-151.0,0.00020547,2]
[369694755,1751701866251,-460.0,0.00020547,2]
[369694756,1751701866260,-1779.51,0.00020547,2]
[369694757,1751701866271,-460.0,0.00020547,2]
[369694758,1751701866287,-460.0,0.00020547,2]
[369694759,1751701866296,-460.0,0.00020547,2]
[369694760,1751701866305,-460.0,0.00020547,2]
[369694761,1751701866314,-460.0,0.00020547,2]
[369694762,1751701866324,-422.32,0.00020547,2]
[369694763,1751701866333,-1370.45,0.00020547,2]
[369694764,1751701866342,-811.83,0.00020547,2]
[369694765,1751701866352,-290.34492026,0.00020555,3]
[369694766,1751701866361,-1500.0,0.00020568,2]
[369694767,1751701866371,-1500.0,0.00020568,2]
[369694768,1751701866382,-1000.0,0.00020568,2]
[369694769,1751701866392,-1612.39333012,0.00020568,2]
[369694770,1751701866401,-1500.0,0.00020568,2]
[369694771,1751701866411,-1000.0,0.00020568,2]
[369694772,1751701866424,-1501.15128401,0.00020568,2]
[369694773,1751701866433,-1500.0,0.00020568,2]
[369694774,1751701866442,-1500.0,0.00020568,2]
[369694775,1751701866456,-1312.6248549,0.00020568,2]
[369694776,1751701866466,-1500.0,0.00020568,2]
[369694777,1751701866475,-1800.0,0.00020568,2]
[369694778,1751701866485,-4622.06,0.000206,2]
[369694779,1751701866496,-2648.49301409,0.00020659,2]
[369694780,1751701866505,-185.747952,0.0002071,2]
[369694781,1751701866515,-185.747952,0.0002071,2]
[369694782,1751701866529,-420.0,0.00020727,2]
[369694783,1751701866540,-290.34492026,0.00020762,3]
[369694784,1751701866551,-420.0,0.00020775,2]
[369694785,1751701866565,-168.0,0.0002081,2]
[369694786,1751701866579,-151.0,0.0002081,2]
[369694787,1751701866589,-151.0,0.0002081,2]
[369694788,1751701866684,-199.679004,0.0002081,2]
[369694789,1751701866701,-151.0,0.0002081,2]
[369694790,1751701866713,-151.0,0.0002081,2]
[369694791,1751701866723,-151.0,0.0002081,2]
[369694792,1751701866732,-1000.0,0.00020816,2]
[369694793,1751701866745,-1000.0,0.00020816,2]
[369694794,1751701866755,-160.39624608,0.00020816,2]
[369694795,1751701866765,-151.0,0.00020821,2]
[369694796,1751701866775,-536.45,0.00020821,2]
[369694797,1751701866786,-559.76,0.00020821,2]
[369694798,1751701866795,-460.0,0.00020821,2]
[369694799,1751701866807,-460.0,0.00020821,2]
[369694800,1751701866816,-227.05,0.00020821,2]
[369694801,1751701866825,-460.0,0.00020821,2]
[369694802,1751701866835,-460.0,0.00020821,2]
[369694803,1751701866844,-460.0,0.00020821,2]
[369694804,1751701866855,-460.0,0.00020821,2]
[369694805,1751701866865,-460.0,0.00020821,2]
[369694806,1751701866875,-460.0,0.00020821,2]
[369694807,1751701866884,-392.64,0.00020821,2]
[369694808,1751701866895,-460.0,0.00020821,2]
[369694809,1751701866904,-460.0,0.00020821,2]
[369694810,1751701866913,-460.0,0.00020821,2]
[369694811,1751701866922,-602.66,0.00020821,2]
[369694812,1751701866931,-460.0,0.00020821,2]
[369694813,1751701866941,-557.83071603,0.00020821,2]
[369694814,1751701866950,-460.0,0.00020821,2]
[369694815,1751701866959,-272.12,0.00020821,2]
[369694816,1751701866968,-460.0,0.00020821,2]
[369694817,1751701866977,-704.66,0.00020821,2]
[369694818,1751701866987,-470.44,0.00020821,2]
[369694819,1751701866997,-460.0,0.00020821,2]
[369694820,1751701867006,-460.0,0.00020821,2]
[369694821,1751701867015,-460.0,0.00020821,2]
[369694822,1751701867025,-727.24,0.00020821,2]
[369694823,1751701867034,-460.0,0.00020821,2]
[369694824,1751701867047,-460.0,0.00020821,2]
[369694825,1751701867057,-460.0,0.00020821,2]
[369694826,1751701867066,-282.28,0.00020821,2]
[369694827,1751701867075,-460.0,0.00020821,2]
[369694828,1751701867085,-460.0,0.00020821,2]
[369694829,1751701867094,-460.0,0.00020821,2]
[369694830,1751701867103,-460.0,0.00020821,2]
[369694831,1751701867113,-460.0,0.00020821,2]
[369694832,1751701867122,-460.0,0.00020821,2]
[369694833,1751701867131,-460.0,0.00020821,2]
[369694834,1751701867140,-460.0,0.00020821,2]
[369694835,1751701867150,-460.0,0.00020821,2]
[369694836,1751701867159,-460.0,0.00020821,2]
[369694837,1751701867168,-460.0,0.00020821,2]
[369694838,1751701867177,-460.0,0.00020821,2]
[369694839,1751701867186,-584.8,0.00020821,2]
[369694840,1751701867194,-151.0,0.00020821,2]
[369694841,1751701867203,-460.0,0.00020821,2]
[369694842,1751701867213,-460.0,0.00020821,2]
[369694843,1751701867222,-460.0,0.00020821,2]
[369694844,1751701867231,-460.0,0.00020821,2]
[369694845,1751701867240,-460.0,0.00020821,2]
[369694846,1751701867249,-364.97,0.00020821,2]
[369694847,1751701867259,-151.0,0.00020821,2]
[369694848,1751701867268,-502.48,0.00020821,2]
[369694849,1751701867278,-460.0,0.00020821,2]
[369694850,1751701867287,-460.0,0.00020821,2]
[369694851,1751701867296,-460.0,0.00020821,2]
[369694852,1751701867304,-460.0,0.00020821,2]
[369694853,1751701867314,-460.0,0.00020821,2]
[369694854,1751701867323,-460.0,0.00020821,2]
[369694855,1751701867331,-907.54,0.00020821,2]
[369694856,1751701867340,-1185.57,0.00020821,2]
[369694857,1751701867349,-3538.96,0.00020821,2]
[369694858,1751701867358,-687.84,0.00020821,2]
[369694859,1751701867367,-460.0,0.00020821,2]
[369694860,1751701867376,-460.0,0.00020821,2]
[369694861,1751701867386,-460.0,0.00020821,2]
[369694862,1751701867395,-460.0,0.00020821,2]
[369694863,1751701867404,-460.0,0.00020821,2]
[369694864,1751701867413,-2933.03,0.00020821,2]
[369694865,1751701867422,-460.0,0.00020821,2]
[369694866,1751701867431,-365.91,0.00020821,2]
[369694867,1751701867440,-460.0,0.00020821,2]
[369694868,1751701867449,-460.0,0.00020821,2]
[369694869,1751701867458,-518.68,0.00020821,2]
[369694870,1751701867467,-409.5,0.00020821,2]
[369694871,1751701867475,-460.0,0.00020821,2]
[369694872,1751701867484,-460.0,0.00020821,2]
[369694873,1751701867494,-460.0,0.00020821,2]
[369694874,1751701867503,-460.0,0.00020821,2]
[369694875,1751701867512,-460.0,0.00020821,2]
[369694876,1751701867522,-460.0,0.00020821,2]
[369694877,1751701867531,-460.0,0.00020821,2]
[369694878,1751701867541,-1821.41,0.00020821,2]
[369694879,1751701867550,-632.6,0.00020821,2]
[369694880,1751701867560,-152.37,0.00020821,2]
[369694881,1751701867573,-1530.39,0.00020821,2]
[369694882,1751701867583,-468.15,0.00020821,2]
[369694883,1751701867593,-460.0,0.00020821,2]
[369694884,1751701867602,-460.0,0.00020821,2]
[369694885,1751701867613,-460.0,0.00020821,2]
[369694886,1751701867624,-460.0,0.00020821,2]
[369694887,1751701867633,-511.85,0.00020821,2]
[369694888,1751701867642,-460.0,0.00020821,2]
[369694889,1751701867652,-2506.18,0.00020821,2]
[369694890,1751701867663,-460.0,0.00020821,2]
[369694891,1751701867672,-460.0,0.00020821,2]
[369694892,1751701867681,-1202.7,0.00020821,2]
[369694893,1751701867691,-460.0,0.00020821,2]
[369694894,1751701867699,-460.0,0.00020821,2]
[369694895,1751701867709,-460.0,0.00020821,2]
[369694896,1751701867718,-460.0,0.00020821,2]
[369694897,1751701867727,-460.0,0.00020821,2]
[369694898,1751701867736,-3673.29,0.00020821,2]
[369694899,1751701867745,-460.0,0.00020821,2]
[369694900,1751701867755,-239.492715,0.00020821,2]
[369694901,1751701867764,-460.0,0.00020821,2]
[369694902,1751701867775,-460.0,0.00020821,2]
[369694903,1751701867785,-460.0,0.00020821,2]
[369694904,1751701867795,-239.492715,0.00020821,2]
[369694905,1751701867805,-460.0,0.00020821,2]
[369694906,1751701867814,-460.0,0.00020821,2]
[369694907,1751701867824,-622.8,0.00020821,2]
[369694908,1751701867834,-460.0,0.00020821,2]
[369694909,1751701867843,-726.51,0.00020821,2]
[369694910,1751701867853,-460.0,0.00020821,2]
[369694911,1751701867862,-460.0,0.00020821,2]
[369694912,1751701867872,-460.0,0.00020821,2]
[369694913,1751701867882,-460.0,0.00020821,2]
[369694914,1751701867891,-460.0,0.00020821,2]
[369694915,1751701867900,-415.62,0.00020821,2]
[369694916,1751701867910,-524.99,0.00020821,2]
[369694917,1751701867919,-246.79,0.00020821,2]
[369694918,1751701867928,-460.0,0.00020821,2]
[369694919,1751701867938,-460.0,0.00020821,2]
[369694920,1751701867948,-279.58386123,0.00020821,2]
[369694921,1751701867957,-466.23,0.00020821,2]
[369694922,1751701867967,-438.29,0.00020821,2]
[369694923,1751701867977,-460.0,0.00020821,2]
[369694924,1751701867986,-1125.03,0.00020821,2]
[369694925,1751701867995,-4164.14,0.00020821,2]
[369694926,1751701868003,-460.0,0.00020821,2]
[369694927,1751701868012,-644.74,0.00020821,2]
[369694928,1751701868022,-2296.88,0.00020821,2]
[369694929,1751701868031,-1530.31,0.00020821,2]
[369694930,1751701868041,-460.0,0.00020821,2]
[369694931,1751701868050,-460.0,0.00020821,2]
[369694932,1751701868059,-460.0,0.00020821,2]
[369694933,1751701868068,-1261.44,0.00020821,2]
[369694934,1751701868078,-460.0,0.00020821,2]
[369694935,1751701868087,-460.0,0.00020821,2]
[369694936,1751701868096,-650.57,0.00020821,2]
[369694937,1751701868106,-460.0,0.00020821,2]
[369694938,1751701868117,-460.0,0.00020821,2]
[369694939,1751701868126,-460.0,0.00020821,2]
[369694940,1751701868136,-460.0,0.00020821,2]
[369694941,1751701868145,-460.0,0.00020821,2]
[369694942,1751701868153,-460.0,0.00020821,2]
[369694943,1751701868163,-712.92,0.00020821,2]
[369694944,1751701868266,-461.57,0.00020821,2]
[369694945,1751701868276,-460.0,0.00020821,2]
[369694946,1751701868286,-616.21,0.00020821,2]
[369694947,1751701868295,-530.14,0.00020821,2]
[369694948,1751701868305,-1589.72,0.00020821,2]
[369694949,1751701868314,-460.0,0.00020821,2]
[369694950,1751701868323,-3353.68,0.00020821,2]
[369694951,1751701868332,-460.0,0.00020821,2]
[369694952,1751701868341,-460.0,0.00020821,2]
[369694953,1751701868351,-1779.51,0.00020821,2]
[369694954,1751701868360,-460.0,0.00020821,2]
[369694955,1751701868369,-460.0,0.00020821,2]
[369694956,1751701868378,-460.0,0.00020821,2]
[369694957,1751701868387,-460.0,0.00020821,2]
[369694958,1751701868397,-1370.45,0.00020821,2]
[369694959,1751701868407,-811.83,0.00020821,2]
[369694960,1751701868416,-151.0,0.00020825,2]
[369694961,1751701868426,-151.0,0.00020825,2]
[369694962,1751701868436,-151.0,0.00020825,2]
[369694963,1751701868444,-500.0,0.00020855,2]
[369694964,1751701868453,-151.0,0.00020855,2]
[369694965,1751701868462,-500.0,0.00020855,2]
[369694966,1751701868472,-500.0,0.00020855,2]
[369694967,1751701868481,-500.0,0.00020882,2]
[369694968,1751701868490,-151.28214266,0.00020882,2]
[369694969,1751701868501,-500.0,0.00020882,2]
[369694970,1751701868511,-500.0,0.00020882,2]
[369694971,1751701868520,-420.0,0.00020908,2]
[369694972,1751701868530,-500.0,0.0002091,2]
[369694973,1751701868539,-500.0,0.0002091,2]
[369694974,1751701868548,-500.0,0.0002091,2]
[369694975,1751701868556,-500.0,0.00020937,2]
[369694976,1751701868568,-500.0,0.00020937,2]
[369694977,1751701868579,-500.0,0.00020937,2]
[369694978,1751701868589,-500.0,0.00020965,2]
[369694979,1751701868598,-500.0,0.00020965,2]
[369694980,1751701868609,-290.34492026,0.00020969,4]
[369694981,1751701868618,-2648.49301409,0.00020985,2]
[369694982,1751701868627,-500.0,0.00020992,2]
[369694983,1751701868636,-500.0,0.00021019,2]
[369694984,1751701868646,-500.0,0.00021047,2]
[369694985,1751701868656,-1500.0,0.00021068,2]
[369694986,1751701868665,-500.0,0.00021074,2]
[369694987,1751701868674,-155.0,0.00021095,2]
[369694988,1751701868683,-301.27,0.00021095,2]
[369694989,1751701868692,-460.0,0.00021095,2]
[369694990,1751701868701,-460.0,0.00021095,2]
[369694991,1751701868711,-460.0,0.00021095,2]
[369694992,1751701868720,-460.0,0.00021095,2]
[369694993,1751701868729,-227.27,0.00021095,2]
[369694994,1751701868738,-460.0,0.00021095,2]
[369694995,1751701868747,-460.0,0.00021095,2]
[369694996,1751701868759,-354.23652292,0.00021095,2]
[369694997,1751701868768,-460.0,0.00021095,2]
[369694998,1751701868778,-704.66,0.00021095,2]
[369694999,1751701868788,-522.82,0.00021095,2]
[369695000,1751701868797,-460.0,0.00021095,2]
[369695001,1751701868807,-460.0,0.00021095,2]
[369695002,1751701868816,-727.24,0.00021095,2]
[369695003,1751701868826,-359.44,0.00021095,2]
[369695004,1751701868836,-460.0,0.00021095,2]
[369695005,1751701868845,-460.0,0.00021095,2]
[369695006,1751701868855,-460.0,0.00021095,2]
[369695007,1751701868864,-576.65,0.00021095,2]
[369695008,1751701868874,-460.0,0.00021095,2]
[369695009,1751701868884,-460.0,0.00021095,2]
[369695010,1751701868893,-460.0,0.00021095,2]
[369695011,1751701868902,-460.0,0.00021095,2]
[369695012,1751701868911,-460.0,0.00021095,2]
[369695013,1751701868920,-566.52,0.00021095,2]
[369695014,1751701868929,-428.45,0.00021095,2]
[369695015,1751701868938,-151.0,0.00021095,2]
[369695016,1751701868948,-151.0,0.00021095,2]
[369695017,1751701868957,-536.0,0.00021095,2]
[369695018,1751701868967,-460.0,0.00021095,2]
[369695019,1751701868976,-460.0,0.00021095,2]
[369695020,1751701868985,-460.0,0.00021095,2]
[369695021,1751701868994,-460.0,0.00021095,2]
[369695022,1751701869004,-151.0,0.00021095,2]
[369695023,1751701869013,-460.0,0.00021095,2]
[369695024,1751701869022,-502.48,0.00021095,2]
[369695025,1751701869032,-460.0,0.00021095,2]
[369695026,1751701869041,-460.0,0.00021095,2]
[369695027,1751701869051,-459.7,0.00021095,2]
[369695028,1751701869060,-497.1,0.00021095,2]
[369695029,1751701869069,-460.0,0.00021095,2]
[369695030,1751701869078,-460.0,0.00021095,2]
[369695031,1751701869087,-907.54,0.00021095,2]
[369695032,1751701869097,-1185.57,0.00021095,2]
[369695033,1751701869107,-3538.96,0.00021095,2]
[369695034,1751701869116,-687.84,0.00021095,2]
[369695035,1751701869125,-460.0,0.00021095,2]
[369695036,1751701869135,-460.0,0.00021095,2]
[369695037,1751701869144,-460.0,0.00021095,2]
[369695038,1751701869153,-460.0,0.00021095,2]
[369695039,1751701869162,-460.0,0.00021095,2]
[369695040,1751701869171,-2933.03,0.00021095,2]
[369695041,1751701869180,-460.0,0.00021095,2]
[369695042,1751701869190,-316.3138839,0.00021095,2]
[369695043,1751701869199,-518.68,0.00021095,2]
[369695044,1751701869208,-460.0,0.00021095,2]
[369695045,1751701869217,-460.0,0.00021095,2]
[369695046,1751701869226,-352.25,0.00021095,2]
[369695047,1751701869235,-415.68095347,0.00021095,2]